[Event "Titled Tuesday Blitz December 20 Early 2022"]
[White "Flawless_Fighter"]
[Black "Linhart, Wolfgang"]
[BlackFideId "4636244"]
[WhiteElo "2622"]
[BlackElo "2114"]
[Result "1-0"]
[Round "04"]
[TimeControl "180+2"]
[Date "2022.12.20"]
[WhiteClock "0:00:04"]
[BlackClock "0:00:02"]

1. d4 {[%clk 0:03:00]}  Nf6 {[%clk 0:02:58]} 2. Nf3 {[%clk 0:03:00]}  g6 {[%clk 0:02:58]} 3. Nfd2 {[%clk 0:03:00]}  d5 {[%clk 0:02:56]} 4. g3 {[%clk 0:02:51]}  Bg7 {[%clk 0:02:55]} 5. Bg2 {[%clk 0:02:52]}  O-O {[%clk 0:02:56]} 6. O-O {[%clk 0:02:51]}  b6 {[%clk 0:02:54]} 7. c4 {[%clk 0:02:51]}  e6 {[%clk 0:02:45]} 8. Nc3 {[%clk 0:02:50]}  Bb7 {[%clk 0:02:44]} 9. cxd5 {[%clk 0:02:44]}  exd5 {[%clk 0:02:44]} 10. Nc4 {[%clk 0:02:42]}  Nbd7 {[%clk 0:02:39]} 11. Bf4 {[%clk 0:02:40]}  Re8 {[%clk 0:02:06]} 12. Rc1 {[%clk 0:02:26]}  c5 {[%clk 0:01:27]} 13. Nd6 {[%clk 0:02:20]}  Ba6 {[%clk 0:00:58]} 14. Nxe8 {[%clk 0:02:18]}  Qxe8 {[%clk 0:00:58]} 15. dxc5 {[%clk 0:02:16]}  Nxc5 {[%clk 0:00:54]} 16. Re1 {[%clk 0:02:08]}  Rd8 {[%clk 0:00:53]} 17. Bg5 {[%clk 0:01:56]}  Bb7 {[%clk 0:00:47]} 18. e3 {[%clk 0:01:52]}  Qe6 {[%clk 0:00:41]} 19. b4 {[%clk 0:01:46]}  Ncd7 {[%clk 0:00:26]} 20. Nxd5 {[%clk 0:01:30]}  Bxd5 {[%clk 0:00:20]} 21. Bxd5 {[%clk 0:01:29]}  Qe5 {[%clk 0:00:18]} 22. Bxf6 {[%clk 0:01:15]}  Qxf6 {[%clk 0:00:16]} 23. Bc6 {[%clk 0:01:13]}  Ne5 {[%clk 0:00:15]} 24. Qc2 {[%clk 0:01:06]}  Rc8 {[%clk 0:00:15]} 25. b5 {[%clk 0:01:05]}  Nf3+ {[%clk 0:00:13]} 26. Kg2 {[%clk 0:00:56]}  Nxe1+ {[%clk 0:00:14]} 27. Rxe1 {[%clk 0:00:57]}  Qc3 {[%clk 0:00:13]} 28. Rc1 {[%clk 0:00:56]}  Qxc2 {[%clk 0:00:13]} 29. Rxc2 {[%clk 0:00:57]}  Be5 {[%clk 0:00:12]} 30. Rd2 {[%clk 0:00:55]}  Kg7 {[%clk 0:00:11]} 31. Rd7 {[%clk 0:00:51]}  Rc7 {[%clk 0:00:12]} 32. Rd5 {[%clk 0:00:45]}  Bc3 {[%clk 0:00:10]} 33. a4 {[%clk 0:00:44]}  Bb4 {[%clk 0:00:10]} 34. f4 {[%clk 0:00:43]}  Bc5 {[%clk 0:00:10]} 35. Kf3 {[%clk 0:00:43]}  Re7 {[%clk 0:00:10]} 36. Rd3 {[%clk 0:00:44]}  f5 {[%clk 0:00:09]} 37. e4 {[%clk 0:00:38]}  fxe4+ {[%clk 0:00:09]} 38. Bxe4 {[%clk 0:00:39]}  Kf6 {[%clk 0:00:09]} 39. Bc6 {[%clk 0:00:36]}  h5 {[%clk 0:00:09]} 40. Rc3 {[%clk 0:00:23]}  Kg7 {[%clk 0:00:09]} 41. Rb3 {[%clk 0:00:23]}  Kf6 {[%clk 0:00:09]} 42. Rd3 {[%clk 0:00:22]}  Kg7 {[%clk 0:00:09]} 43. Be4 {[%clk 0:00:20]}  Kf6 {[%clk 0:00:08]} 44. Rb3 {[%clk 0:00:19]}  Kg7 {[%clk 0:00:09]} 45. Rd3 {[%clk 0:00:19]}  Kf6 {[%clk 0:00:09]} 46. h3 {[%clk 0:00:20]}  Rc7 {[%clk 0:00:07]} 47. Rd5 {[%clk 0:00:17]}  Bb4 {[%clk 0:00:05]} 48. Bd3 {[%clk 0:00:13]}  Rc3 {[%clk 0:00:05]} 49. Ke4 {[%clk 0:00:13]}  Rc7 {[%clk 0:00:05]} 50. g4 {[%clk 0:00:11]}  Bc5 {[%clk 0:00:05]} 51. Rg5 {[%clk 0:00:10]}  Re7+ {[%clk 0:00:05]} 52. Kd5 {[%clk 0:00:06]}  Rd7+ {[%clk 0:00:05]} 53. Kc4 {[%clk 0:00:06]}  Rd4+ {[%clk 0:00:05]} 54. Kc3 {[%clk 0:00:06]}  Rxf4 {[%clk 0:00:06]} 55. Rxg6+ {[%clk 0:00:06]}  Ke5 {[%clk 0:00:06]} 56. Rg5+ {[%clk 0:00:05]}  Ke6 {[%clk 0:00:05]} 57. Rxh5 {[%clk 0:00:06]}  Bb4+ {[%clk 0:00:05]} 58. Kb3 {[%clk 0:00:06]}  Bc5 {[%clk 0:00:05]} 59. Bc4+ {[%clk 0:00:06]}  Kf6 {[%clk 0:00:04]} 60. Rh6+ {[%clk 0:00:06]}  Kg5 {[%clk 0:00:03]} 61. Rh5+ {[%clk 0:00:06]}  Kg6 {[%clk 0:00:03]} 62. Bd3+ {[%clk 0:00:06]}  Kg7 {[%clk 0:00:03]} 63. g5 {[%clk 0:00:06]}  Rb4+ {[%clk 0:00:03]} 64. Kc3 {[%clk 0:00:06]}  Rxa4 {[%clk 0:00:04]} 65. Rh7+ {[%clk 0:00:05]}  Kg8 {[%clk 0:00:03]} 66. g6 {[%clk 0:00:04]}  Ra3+ {[%clk 0:00:03]} 67. Kc2 {[%clk 0:00:04]}  Ra2+ {[%clk 0:00:03]} 68. Kb3 {[%clk 0:00:04]}  Rg2 {[%clk 0:00:04]} 69. Bc4+ {[%clk 0:00:04]}  Kf8 {[%clk 0:00:03]} 70. Rf7+ {[%clk 0:00:04]}  Ke8 {[%clk 0:00:02]} 71. Bd3 {[%clk 0:00:05]}  Bd4 {[%clk 0:00:02]} 72. Rxa7 {[%clk 0:00:04]} 1-0


[Site "https://www.chess.com"]

[Event "Titled Tuesday Blitz December 20 Early 2022"]
[White "Gennady_Kozlov"]
[Black "Kopylov_Alex"]
[WhiteElo "2574"]
[BlackElo "2790"]
[Result "0-1"]
[Round "04"]
[TimeControl "180+2"]
[Date "2022.12.20"]
[WhiteClock "0:01:05"]
[BlackClock "0:00:44"]

1. b3 {[%clk 0:03:00]}  b6 {[%clk 0:02:59]} 2. Bb2 {[%clk 0:03:00]}  Bb7 {[%clk 0:03:00]} 3. e3 {[%clk 0:02:59]}  Nf6 {[%clk 0:03:00]} 4. f4 {[%clk 0:02:59]}  g6 {[%clk 0:03:00]} 5. Nf3 {[%clk 0:02:58]}  Bg7 {[%clk 0:03:00]} 6. Be2 {[%clk 0:02:57]}  d6 {[%clk 0:03:01]} 7. O-O {[%clk 0:02:57]}  Nbd7 {[%clk 0:03:01]} 8. a4 {[%clk 0:02:57]}  a6 {[%clk 0:02:59]} 9. Na3 {[%clk 0:02:57]}  e6 {[%clk 0:02:59]} 10. Rb1 {[%clk 0:02:55]}  Qe7 {[%clk 0:02:59]} 11. d3 {[%clk 0:02:56]}  e5 {[%clk 0:02:42]} 12. fxe5 {[%clk 0:02:53]}  Nxe5 {[%clk 0:02:41]} 13. Nxe5 {[%clk 0:02:53]}  dxe5 {[%clk 0:02:41]} 14. Nc4 {[%clk 0:02:53]}  Nd5 {[%clk 0:02:33]} 15. Bf3 {[%clk 0:02:52]}  O-O-O {[%clk 0:02:31]} 16. Bxd5 {[%clk 0:02:49]}  Bxd5 {[%clk 0:02:30]} 17. Qe2 {[%clk 0:02:49]}  f5 {[%clk 0:02:26]} 18. e4 {[%clk 0:02:45]}  fxe4 {[%clk 0:02:25]} 19. dxe4 {[%clk 0:02:46]}  Qc5+ {[%clk 0:02:23]} 20. Kh1 {[%clk 0:02:45]}  Bxc4 {[%clk 0:02:23]} 21. bxc4 {[%clk 0:02:45]}  Bh6 {[%clk 0:02:12]} 22. Bc3 {[%clk 0:02:42]}  Rhf8 {[%clk 0:01:46]} 23. a5 {[%clk 0:02:34]}  Rxf1+ {[%clk 0:01:43]} 24. Rxf1 {[%clk 0:02:33]}  Be3 {[%clk 0:01:28]} 25. Qg4+ {[%clk 0:02:32]}  Kb8 {[%clk 0:01:22]} 26. Qe6 {[%clk 0:02:31]}  Bd4 {[%clk 0:01:20]} 27. Bd2 {[%clk 0:02:27]}  Kb7 {[%clk 0:01:13]} 28. axb6 {[%clk 0:02:25]}  Qxb6 {[%clk 0:01:10]} 29. Qf7 {[%clk 0:02:24]}  Qc6 {[%clk 0:01:04]} 30. Bg5 {[%clk 0:02:21]}  Rd7 {[%clk 0:01:03]} 31. Qe8 {[%clk 0:02:17]}  Rd6 {[%clk 0:01:02]} 32. Rb1+ {[%clk 0:02:09]}  Bb6 {[%clk 0:01:02]} 33. Qxe5 {[%clk 0:02:01]}  Re6 {[%clk 0:00:58]} 34. Qa5 {[%clk 0:01:16]}  Rxe4 {[%clk 0:00:48]} 35. c5 {[%clk 0:01:05]}  Re2 {[%clk 0:00:44]} 0-1


[Site "https://www.chess.com"]

[Event "Titled Tuesday Blitz December 20 Early 2022"]
[White "GiorgianBarbosa"]
[Black "Tsyhanchuk_Stanislav"]
[WhiteElo "2484"]
[BlackElo "2335"]
[Result "1-0"]
[Round "04"]
[TimeControl "180+2"]
[Date "2022.12.20"]
[WhiteClock "0:00:03"]
[BlackClock "0:00:30"]

1. d4 {[%clk 0:02:58]}  d5 {[%clk 0:02:59]} 2. c4 {[%clk 0:02:57]}  c6 {[%clk 0:02:59]} 3. Nc3 {[%clk 0:02:57]}  Nf6 {[%clk 0:02:59]} 4. Bf4 {[%clk 0:02:57]}  a6 {[%clk 0:02:56]} 5. e3 {[%clk 0:02:55]}  Bf5 {[%clk 0:02:54]} 6. cxd5 {[%clk 0:02:49]}  Nxd5 {[%clk 0:02:50]} 7. Nf3 {[%clk 0:02:50]}  Nxc3 {[%clk 0:02:48]} 8. bxc3 {[%clk 0:02:50]}  e6 {[%clk 0:02:47]} 9. Bd3 {[%clk 0:02:50]}  Bxd3 {[%clk 0:02:44]} 10. Qxd3 {[%clk 0:02:51]}  Nd7 {[%clk 0:02:42]} 11. O-O {[%clk 0:02:50]}  Be7 {[%clk 0:02:40]} 12. c4 {[%clk 0:02:50]}  O-O {[%clk 0:02:38]} 13. Rab1 {[%clk 0:02:49]}  b5 {[%clk 0:02:38]} 14. c5 {[%clk 0:02:47]}  Nxc5 {[%clk 0:02:27]} 15. Qc2 {[%clk 0:02:46]}  Na4 {[%clk 0:02:12]} 16. Qxc6 {[%clk 0:02:45]}  Qa5 {[%clk 0:02:09]} 17. Rfc1 {[%clk 0:02:38]}  h6 {[%clk 0:01:55]} 18. Bc7 {[%clk 0:02:36]}  Nb6 {[%clk 0:01:41]} 19. Qxb6 {[%clk 0:02:19]}  Qxa2 {[%clk 0:01:40]} 20. Bd6 {[%clk 0:02:18]}  Bxd6 {[%clk 0:01:31]} 21. Qxd6 {[%clk 0:02:19]}  Rac8 {[%clk 0:01:30]} 22. g3 {[%clk 0:02:06]}  Rfd8 {[%clk 0:01:23]} 23. Qe7 {[%clk 0:01:56]}  Re8 {[%clk 0:00:57]} 24. Qb4 {[%clk 0:01:45]}  Qe2 {[%clk 0:00:50]} 25. Kg2 {[%clk 0:01:43]}  Qd3 {[%clk 0:00:30]} 26. Ra1 {[%clk 0:01:07]}  Qe4 {[%clk 0:00:27]} 27. Rxc8 {[%clk 0:01:05]}  Rxc8 {[%clk 0:00:27]} 28. Rxa6 {[%clk 0:01:02]}  g5 {[%clk 0:00:26]} 29. h3 {[%clk 0:00:54]}  h5 {[%clk 0:00:26]} 30. Qxb5 {[%clk 0:00:45]}  g4 {[%clk 0:00:25]} 31. Qg5+ {[%clk 0:00:43]}  Kf8 {[%clk 0:00:25]} 32. Qh6+ {[%clk 0:00:38]}  Ke7 {[%clk 0:00:07]} 33. Ra7+ {[%clk 0:00:36]}  Kd6 {[%clk 0:00:06]} 34. Qf4+ {[%clk 0:00:20]}  Qxf4 {[%clk 0:00:07]} 35. gxf4 {[%clk 0:00:21]}  gxf3+ {[%clk 0:00:08]} 36. Kxf3 {[%clk 0:00:21]}  f5 {[%clk 0:00:08]} 37. Rh7 {[%clk 0:00:20]}  Rc1 {[%clk 0:00:06]} 38. Rxh5 {[%clk 0:00:20]}  Ke7 {[%clk 0:00:06]} 39. Rh8 {[%clk 0:00:20]}  Kf6 {[%clk 0:00:07]} 40. h4 {[%clk 0:00:19]}  Rh1 {[%clk 0:00:08]} 41. h5 {[%clk 0:00:19]}  Rh3+ {[%clk 0:00:07]} 42. Ke2 {[%clk 0:00:19]}  Rh2 {[%clk 0:00:07]} 43. h6 {[%clk 0:00:18]}  Kf7 {[%clk 0:00:08]} 44. h7 {[%clk 0:00:17]}  Rh1 {[%clk 0:00:06]} 45. Ra8 {[%clk 0:00:15]}  Rxh7 {[%clk 0:00:06]} 46. Ra7+ {[%clk 0:00:15]}  Kg6 {[%clk 0:00:07]} 47. Rxh7 {[%clk 0:00:16]}  Kxh7 {[%clk 0:00:08]} 48. Kd3 {[%clk 0:00:16]}  Kg6 {[%clk 0:00:09]} 49. Kc4 {[%clk 0:00:17]}  Kf6 {[%clk 0:00:09]} 50. Kc5 {[%clk 0:00:18]}  Ke7 {[%clk 0:00:10]} 51. Kc6 {[%clk 0:00:18]}  Ke8 {[%clk 0:00:11]} 52. Kd6 {[%clk 0:00:19]}  Kf7 {[%clk 0:00:12]} 53. Kd7 {[%clk 0:00:19]}  Kf6 {[%clk 0:00:12]} 54. Ke8 {[%clk 0:00:19]}  e5 {[%clk 0:00:11]} 55. dxe5+ {[%clk 0:00:20]}  Ke6 {[%clk 0:00:12]} 56. Kf8 {[%clk 0:00:20]}  Kd5 {[%clk 0:00:13]} 57. Kg7 {[%clk 0:00:21]}  Ke6 {[%clk 0:00:14]} 58. Kg6 {[%clk 0:00:21]}  Ke7 {[%clk 0:00:14]} 59. Kxf5 {[%clk 0:00:21]}  Kf7 {[%clk 0:00:15]} 60. e6+ {[%clk 0:00:22]}  Ke7 {[%clk 0:00:16]} 61. Ke5 {[%clk 0:00:22]}  Ke8 {[%clk 0:00:16]} 62. f5 {[%clk 0:00:23]}  Kf8 {[%clk 0:00:17]} 63. f6 {[%clk 0:00:23]}  Ke8 {[%clk 0:00:18]} 64. f4 {[%clk 0:00:20]}  Kf8 {[%clk 0:00:19]} 65. f5 {[%clk 0:00:20]}  Ke8 {[%clk 0:00:20]} 66. Kd6 {[%clk 0:00:18]}  Kf8 {[%clk 0:00:21]} 67. e7+ {[%clk 0:00:18]}  Ke8 {[%clk 0:00:22]} 68. Kc7 {[%clk 0:00:15]}  Kf7 {[%clk 0:00:23]} 69. Kd8 {[%clk 0:00:14]}  Kg8 {[%clk 0:00:23]} 70. e8=Q+ {[%clk 0:00:11]}  Kh7 {[%clk 0:00:24]} 71. Qg6+ {[%clk 0:00:09]}  Kh8 {[%clk 0:00:25]} 72. Qg5 {[%clk 0:00:02]}  Kh7 {[%clk 0:00:25]} 73. e4 {[%clk 0:00:03]}  Kh8 {[%clk 0:00:26]} 74. e5 {[%clk 0:00:04]}  Kh7 {[%clk 0:00:26]} 75. e6 {[%clk 0:00:05]}  Kh8 {[%clk 0:00:27]} 76. e7 {[%clk 0:00:05]}  Kh7 {[%clk 0:00:28]} 77. Kd7 {[%clk 0:00:06]}  Kh8 {[%clk 0:00:29]} 78. e8=Q+ {[%clk 0:00:06]}  Kh7 {[%clk 0:00:30]} 79. Qf7+ {[%clk 0:00:05]}  Kh8 {[%clk 0:00:30]} 80. Qh6# {[%clk 0:00:03]} 1-0


[Site "https://www.chess.com"]

[Event "Titled Tuesday Blitz December 20 Early 2022"]
[White "Giorno, Sven"]
[Black "Rakesh, Kumar Jena"]
[WhiteFideId "20645082"]
[BlackFideId "5084822"]
[WhiteElo "2517"]
[BlackElo "2303"]
[Result "1/2-1/2"]
[Round "04"]
[TimeControl "180+2"]
[Date "2022.12.20"]
[WhiteClock "0:00:10"]
[BlackClock "0:00:11"]

1. d4 {[%clk 0:02:59]}  Nf6 {[%clk 0:02:58]} 2. c4 {[%clk 0:02:58]}  e6 {[%clk 0:02:58]} 3. Nf3 {[%clk 0:02:58]}  b6 {[%clk 0:02:58]} 4. g3 {[%clk 0:02:58]}  Bb7 {[%clk 0:02:57]} 5. Bg2 {[%clk 0:02:58]}  Be7 {[%clk 0:02:58]} 6. O-O {[%clk 0:02:56]}  Ne4 {[%clk 0:02:56]} 7. Qc2 {[%clk 0:02:52]}  O-O {[%clk 0:02:55]} 8. Ne1 {[%clk 0:02:49]}  f5 {[%clk 0:02:55]} 9. Nc3 {[%clk 0:02:48]}  d5 {[%clk 0:02:53]} 10. cxd5 {[%clk 0:02:48]}  exd5 {[%clk 0:02:49]} 11. Nd3 {[%clk 0:02:47]}  Nd7 {[%clk 0:02:48]} 12. h4 {[%clk 0:02:37]}  Rc8 {[%clk 0:02:46]} 13. Qb3 {[%clk 0:02:33]}  c5 {[%clk 0:02:36]} 14. dxc5 {[%clk 0:02:22]}  Ndxc5 {[%clk 0:02:34]} 15. Nxc5 {[%clk 0:02:20]}  Bxc5 {[%clk 0:02:28]} 16. Nxe4 {[%clk 0:02:16]}  fxe4 {[%clk 0:02:27]} 17. Bxe4 {[%clk 0:02:16]}  Qd6 {[%clk 0:02:07]} 18. Kg2 {[%clk 0:01:57]}  Rce8 {[%clk 0:02:00]} 19. Bf3 {[%clk 0:01:55]}  Kh8 {[%clk 0:01:56]} 20. Rd1 {[%clk 0:01:40]}  Rxe2 {[%clk 0:01:48]} 21. Rf1 {[%clk 0:01:22]}  Re7 {[%clk 0:01:24]} 22. Bf4 {[%clk 0:00:48]}  Rxf4 {[%clk 0:00:56]} 23. gxf4 {[%clk 0:00:49]}  Qxf4 {[%clk 0:00:49]} 24. Rfe1 {[%clk 0:00:41]}  Qxh4 {[%clk 0:00:26]} 25. Rxe7 {[%clk 0:00:36]}  Qxf2+ {[%clk 0:00:20]} 26. Kh1 {[%clk 0:00:36]}  Qh4+ {[%clk 0:00:20]} 27. Kg2 {[%clk 0:00:35]}  Qg5+ {[%clk 0:00:14]} 28. Kh1 {[%clk 0:00:30]}  Qxe7 {[%clk 0:00:13]} 29. Qa4 {[%clk 0:00:25]}  h6 {[%clk 0:00:11]} 30. Qg4 {[%clk 0:00:19]}  d4 {[%clk 0:00:10]} 31. Rf1 {[%clk 0:00:14]}  Bxf3+ {[%clk 0:00:08]} 32. Rxf3 {[%clk 0:00:14]}  Qe1+ {[%clk 0:00:08]} 33. Kg2 {[%clk 0:00:13]}  Qe2+ {[%clk 0:00:08]} 34. Kh3 {[%clk 0:00:13]}  Qe5 {[%clk 0:00:07]} 35. Qc8+ {[%clk 0:00:11]}  Kh7 {[%clk 0:00:07]} 36. Qf5+ {[%clk 0:00:11]}  Qxf5+ {[%clk 0:00:07]} 37. Rxf5 {[%clk 0:00:11]}  Kg6 {[%clk 0:00:07]} 38. Rd5 {[%clk 0:00:12]}  a5 {[%clk 0:00:07]} 39. a3 {[%clk 0:00:12]}  Kf6 {[%clk 0:00:07]} 40. b4 {[%clk 0:00:11]}  axb4 {[%clk 0:00:07]} 41. axb4 {[%clk 0:00:12]}  Bxb4 {[%clk 0:00:08]} 42. Rxd4 {[%clk 0:00:13]}  Bc5 {[%clk 0:00:08]} 43. Rd8 {[%clk 0:00:13]}  Ke5 {[%clk 0:00:09]} 44. Kg4 {[%clk 0:00:12]}  g5 {[%clk 0:00:09]} 45. Rh8 {[%clk 0:00:10]}  b5 {[%clk 0:00:09]} 46. Rxh6 {[%clk 0:00:10]}  b4 {[%clk 0:00:10]} 47. Rg6 {[%clk 0:00:09]}  b3 {[%clk 0:00:09]} 48. Rxg5+ {[%clk 0:00:09]}  Kd4 {[%clk 0:00:10]} 49. Rf5 {[%clk 0:00:09]}  b2 {[%clk 0:00:10]} 50. Rf1 {[%clk 0:00:09]}  Kc3 {[%clk 0:00:10]} 51. Rb1 {[%clk 0:00:09]}  Kc2 {[%clk 0:00:10]} 52. Rxb2+ {[%clk 0:00:10]}  Kxb2 {[%clk 0:00:11]} 1/2-1/2


[Site "https://www.chess.com"]

[Event "Titled Tuesday Blitz December 20 Early 2022"]
[White "Gnechko_Ruslan"]
[Black "Michelin, Badi"]
[BlackFideId "26032708"]
[WhiteElo "2448"]
[BlackElo "1762"]
[Result "1-0"]
[Round "04"]
[TimeControl "180+2"]
[Date "2022.12.20"]
[WhiteClock "0:00:03"]
[BlackClock "0:00:05"]

1. e4 {[%clk 0:02:57]}  c5 {[%clk 0:02:59]} 2. Nf3 {[%clk 0:02:57]}  Nc6 {[%clk 0:03:00]} 3. d4 {[%clk 0:02:57]}  cxd4 {[%clk 0:03:00]} 4. Nxd4 {[%clk 0:02:58]}  Nf6 {[%clk 0:03:00]} 5. Nc3 {[%clk 0:02:59]}  e6 {[%clk 0:03:00]} 6. Nxc6 {[%clk 0:02:58]}  bxc6 {[%clk 0:03:00]} 7. Bd3 {[%clk 0:02:59]}  e5 {[%clk 0:02:58]} 8. O-O {[%clk 0:02:59]}  Be7 {[%clk 0:02:58]} 9. f4 {[%clk 0:02:49]}  exf4 {[%clk 0:02:58]} 10. e5 {[%clk 0:02:45]}  Nd5 {[%clk 0:02:39]} 11. Nxd5 {[%clk 0:02:43]}  cxd5 {[%clk 0:02:40]} 12. Qh5 {[%clk 0:02:32]}  g6 {[%clk 0:02:37]} 13. Qh6 {[%clk 0:02:25]}  Qb6+ {[%clk 0:02:25]} 14. Kh1 {[%clk 0:02:23]}  Ba6 {[%clk 0:02:25]} 15. Bxa6 {[%clk 0:02:17]}  Qxa6 {[%clk 0:02:25]} 16. Bxf4 {[%clk 0:02:17]}  Rc8 {[%clk 0:02:18]} 17. Qg7 {[%clk 0:01:58]}  Rf8 {[%clk 0:02:16]} 18. c3 {[%clk 0:01:53]}  h5 {[%clk 0:01:59]} 19. Bh6 {[%clk 0:01:37]}  Rb8 {[%clk 0:01:06]} 20. Rf6 {[%clk 0:01:18]}  Qe2 {[%clk 0:00:54]} 21. b3 {[%clk 0:00:53]}  Qxe5 {[%clk 0:00:43]} 22. Raf1 {[%clk 0:00:46]}  Qxc3 {[%clk 0:00:35]} 23. Rb6 {[%clk 0:00:29]}  Qc7 {[%clk 0:00:27]} 24. Re1 {[%clk 0:00:16]}  Kd8 {[%clk 0:00:18]} 25. Rxb8+ {[%clk 0:00:16]}  Qxb8 {[%clk 0:00:19]} 26. Qd4 {[%clk 0:00:15]}  Qb4 {[%clk 0:00:15]} 27. Qe5 {[%clk 0:00:08]}  Rg8 {[%clk 0:00:08]} 28. Bd2 {[%clk 0:00:03]}  Qxd2 {[%clk 0:00:05]} 29. Qb8# {[%clk 0:00:03]} 1-0


[Site "https://www.chess.com"]

[Event "Titled Tuesday Blitz December 20 Early 2022"]
[White "GoltsevDmitry2000"]
[Black "Bensenousi, Isk"]
[BlackFideId "4206010"]
[WhiteElo "2739"]
[BlackElo "2041"]
[Result "1/2-1/2"]
[Round "04"]
[TimeControl "180+2"]
[Date "2022.12.20"]
[WhiteClock "0:00:05"]
[BlackClock "0:00:05"]

1. e4 {[%clk 0:02:58]}  e5 {[%clk 0:03:00]} 2. Nf3 {[%clk 0:02:59]}  Nc6 {[%clk 0:03:00]} 3. Bb5 {[%clk 0:02:59]}  a6 {[%clk 0:03:00]} 4. Ba4 {[%clk 0:03:00]}  Nf6 {[%clk 0:03:01]} 5. O-O {[%clk 0:03:00]}  Be7 {[%clk 0:03:01]} 6. Re1 {[%clk 0:03:00]}  b5 {[%clk 0:03:02]} 7. Bb3 {[%clk 0:03:00]}  d6 {[%clk 0:03:02]} 8. c3 {[%clk 0:02:59]}  O-O {[%clk 0:03:02]} 9. h3 {[%clk 0:02:58]}  Nb8 {[%clk 0:03:02]} 10. d4 {[%clk 0:02:58]}  Nbd7 {[%clk 0:03:03]} 11. Nbd2 {[%clk 0:02:56]}  Bb7 {[%clk 0:03:02]} 12. Qe2 {[%clk 0:02:53]}  Re8 {[%clk 0:02:48]} 13. Ng5 {[%clk 0:02:43]}  Rf8 {[%clk 0:02:49]} 14. a4 {[%clk 0:02:29]}  c6 {[%clk 0:02:32]} 15. Nf1 {[%clk 0:02:23]}  h6 {[%clk 0:02:32]} 16. Nf3 {[%clk 0:02:23]}  Re8 {[%clk 0:02:07]} 17. Nh4 {[%clk 0:02:22]}  Bf8 {[%clk 0:01:54]} 18. Ng3 {[%clk 0:02:20]}  d5 {[%clk 0:01:36]} 19. dxe5 {[%clk 0:02:07]}  Nxe4 {[%clk 0:01:10]} 20. Nxe4 {[%clk 0:01:44]}  Qxh4 {[%clk 0:01:09]} 21. Ng3 {[%clk 0:01:38]}  Rxe5 {[%clk 0:01:06]} 22. Be3 {[%clk 0:01:38]}  Bc5 {[%clk 0:00:55]} 23. Qf3 {[%clk 0:01:32]}  Rae8 {[%clk 0:00:52]} 24. axb5 {[%clk 0:01:27]}  cxb5 {[%clk 0:00:37]} 25. Rad1 {[%clk 0:01:21]}  Bxe3 {[%clk 0:00:27]} 26. fxe3 {[%clk 0:01:14]}  Qg5 {[%clk 0:00:12]} 27. e4 {[%clk 0:01:10]}  Nf6 {[%clk 0:00:12]} 28. Qe3 {[%clk 0:01:04]}  Nxe4 {[%clk 0:00:06]} 29. Qxg5 {[%clk 0:01:01]}  hxg5 {[%clk 0:00:03]} 30. Nxe4 {[%clk 0:00:57]}  Rxe4 {[%clk 0:00:04]} 31. Rxe4 {[%clk 0:00:55]}  Rxe4 {[%clk 0:00:04]} 32. Bxd5 {[%clk 0:00:55]}  Bxd5 {[%clk 0:00:05]} 33. Rxd5 {[%clk 0:00:56]}  Re2 {[%clk 0:00:06]} 34. b4 {[%clk 0:00:53]}  Rc2 {[%clk 0:00:05]} 35. Rc5 {[%clk 0:00:51]}  f6 {[%clk 0:00:05]} 36. Rc6 {[%clk 0:00:46]}  Kf7 {[%clk 0:00:05]} 37. Rxa6 {[%clk 0:00:45]}  Rxc3 {[%clk 0:00:04]} 38. Rb6 {[%clk 0:00:45]}  Rb3 {[%clk 0:00:03]} 39. Rxb5 {[%clk 0:00:45]}  Rb2 {[%clk 0:00:04]} 40. Rb7+ {[%clk 0:00:45]}  Kg6 {[%clk 0:00:04]} 41. b5 {[%clk 0:00:45]}  Kf5 {[%clk 0:00:03]} 42. Kh2 {[%clk 0:00:43]}  Kf4 {[%clk 0:00:03]} 43. b6 {[%clk 0:00:42]}  f5 {[%clk 0:00:03]} 44. Rb8 {[%clk 0:00:37]}  Rb1 {[%clk 0:00:04]} 45. b7 {[%clk 0:00:33]}  Rb2 {[%clk 0:00:04]} 46. Ra8 {[%clk 0:00:05]}  Rxb7 {[%clk 0:00:04]} 47. Ra4+ {[%clk 0:00:05]}  Ke5 {[%clk 0:00:05]} 48. Ra5+ {[%clk 0:00:06]}  Kf6 {[%clk 0:00:06]} 49. Ra6+ {[%clk 0:00:06]}  Kf7 {[%clk 0:00:06]} 50. Ra5 {[%clk 0:00:06]}  Kg6 {[%clk 0:00:07]} 51. Ra6+ {[%clk 0:00:06]}  Kh7 {[%clk 0:00:07]} 52. Ra5 {[%clk 0:00:06]}  g6 {[%clk 0:00:08]} 53. Ra6 {[%clk 0:00:06]}  Kg7 {[%clk 0:00:06]} 54. Rc6 {[%clk 0:00:06]}  Rd7 {[%clk 0:00:05]} 55. Rb6 {[%clk 0:00:06]}  Kf7 {[%clk 0:00:05]} 56. Rc6 {[%clk 0:00:06]}  Re7 {[%clk 0:00:06]} 57. Kg3 {[%clk 0:00:06]}  Re6 {[%clk 0:00:07]} 58. Rc5 {[%clk 0:00:07]}  Kf6 {[%clk 0:00:07]} 59. Rc8 {[%clk 0:00:07]}  Re3+ {[%clk 0:00:08]} 60. Kf2 {[%clk 0:00:07]}  Re7 {[%clk 0:00:09]} 61. Rf8+ {[%clk 0:00:07]}  Ke5 {[%clk 0:00:09]} 62. Ra8 {[%clk 0:00:08]}  Rd7 {[%clk 0:00:08]} 63. Ra6 {[%clk 0:00:08]}  Rd5 {[%clk 0:00:08]} 64. Rxg6 {[%clk 0:00:08]}  Kf4 {[%clk 0:00:06]} 65. g3+ {[%clk 0:00:08]}  Ke4 {[%clk 0:00:07]} 66. Rxg5 {[%clk 0:00:08]}  Rd2+ {[%clk 0:00:07]} 67. Ke1 {[%clk 0:00:08]}  Rh2 {[%clk 0:00:08]} 68. h4 {[%clk 0:00:08]}  Kf3 {[%clk 0:00:08]} 69. h5 {[%clk 0:00:04]}  f4 {[%clk 0:00:05]} 70. g4 {[%clk 0:00:04]}  Kg3 {[%clk 0:00:04]} 71. Ra5 {[%clk 0:00:02]}  f3 {[%clk 0:00:05]} 72. g5 {[%clk 0:00:01]}  Rh1+ {[%clk 0:00:04]} 73. Kd2 {[%clk 0:00:01]}  Rxh5 {[%clk 0:00:05]} 74. Rf5 {[%clk 0:00:02]}  Kg4 {[%clk 0:00:05]} 75. Rf8 {[%clk 0:00:02]}  Rh2+ {[%clk 0:00:04]} 76. Ke3 {[%clk 0:00:03]}  Re2+ {[%clk 0:00:04]} 77. Kd3 {[%clk 0:00:03]}  Re6 {[%clk 0:00:04]} 78. Rf6 {[%clk 0:00:03]}  Re7 {[%clk 0:00:02]} 79. g6 {[%clk 0:00:03]}  Rg7 {[%clk 0:00:02]} 80. Ke3 {[%clk 0:00:03]}  Kg5 {[%clk 0:00:02]} 81. Rxf3 {[%clk 0:00:04]}  Rxg6 {[%clk 0:00:03]} 82. Rg3+ {[%clk 0:00:04]}  Kh6 {[%clk 0:00:04]} 83. Rxg6+ {[%clk 0:00:05]}  Kxg6 {[%clk 0:00:05]} 1/2-1/2


[Site "https://www.chess.com"]

[Event "Titled Tuesday Blitz December 20 Early 2022"]
[White "Guliev, Logman"]
[Black "Sokolov, Ivan"]
[WhiteFideId "13400061"]
[BlackFideId "14400030"]
[WhiteElo "2250"]
[BlackElo "2590"]
[Result "1/2-1/2"]
[Round "04"]
[TimeControl "180+2"]
[Date "2022.12.20"]
[WhiteClock "0:01:39"]
[BlackClock "0:00:43"]

1. e4 {[%clk 0:03:00]}  d6 {[%clk 0:02:59]} 2. d4 {[%clk 0:03:00]}  Nf6 {[%clk 0:02:59]} 3. Nc3 {[%clk 0:03:00]}  g6 {[%clk 0:02:59]} 4. f4 {[%clk 0:02:59]}  Bg7 {[%clk 0:02:59]} 5. Nf3 {[%clk 0:02:59]}  O-O {[%clk 0:03:00]} 6. Bd3 {[%clk 0:02:59]}  Nc6 {[%clk 0:02:55]} 7. O-O {[%clk 0:02:59]}  e5 {[%clk 0:02:53]} 8. fxe5 {[%clk 0:02:56]}  dxe5 {[%clk 0:02:53]} 9. d5 {[%clk 0:02:56]}  Nd4 {[%clk 0:02:48]} 10. Nxe5 {[%clk 0:02:54]}  Qe7 {[%clk 0:02:21]} 11. Nf3 {[%clk 0:02:29]}  Bg4 {[%clk 0:02:18]} 12. Be3 {[%clk 0:02:22]}  Nxf3+ {[%clk 0:02:11]} 13. gxf3 {[%clk 0:02:20]}  Bh3 {[%clk 0:02:12]} 14. Re1 {[%clk 0:02:15]}  Nh5 {[%clk 0:02:10]} 15. Qd2 {[%clk 0:02:11]}  Be5 {[%clk 0:02:04]} 16. f4 {[%clk 0:02:03]}  Qh4 {[%clk 0:01:32]} 17. fxe5 {[%clk 0:01:53]}  Qg4+ {[%clk 0:01:32]} 18. Kh1 {[%clk 0:01:47]}  Qf3+ {[%clk 0:01:33]} 19. Kg1 {[%clk 0:01:47]}  Qg4+ {[%clk 0:01:11]} 20. Kh1 {[%clk 0:01:42]}  Qf3+ {[%clk 0:01:09]} 21. Kg1 {[%clk 0:01:39]}  Qg4+ {[%clk 0:00:43]} 1/2-1/2


[Site "https://www.chess.com"]